bitfinex/quotes_ETHUSD_20240729
["timestamp","ask_amount","ask_price","bid_price","bid_amount"]
[1722270753947,3.0608,3267.2,3266.0,3.06184]
[1722270754145,3.0608,3267.2,3265.3,0.306252]
[1722270754146,0.07653588,3267.1,3265.3,0.306252]
[1722270754348,0.07653588,3267.1,3264.4,0.09443661]
[1722270754349,3.06213,3265.7,3264.6,0.3048]
[1722270754589,0.07656387,3265.6,3264.6,3.06313]
[1722270754804,0.07656387,3265.6,3264.7,3.06301]
[1722270755005,0.07656387,3265.6,3264.4,3.15776661]
[1722270755006,0.07656387,3265.6,3264.4,0.09443661]
[1722270755143,0.07656358,3265.9,3264.7,3.06306]
[1722270755456,3.06205,3265.8,3264.7,3.369346]
[1722270755781,0.0765636,3265.7,3264.7,0.306306]
[1722270755981,0.69326332,3266.2,3264.9,3.06287]
[1722270756144,0.69326332,3266.2,3265.4,3.06233]
[1722270756145,0.07656055,3266.2,3265.4,3.06233]
[1722270756344,3.13822055,3266.2,3265.1,3.06263]
[1722270756752,3.67800277,3266.6,3265.5,3.0623]
[1722270757007,0.61670277,3266.6,3266.0,3.06184]
[1722270757186,2.4134,3266.8,3265.9,0.00207008]
[1722270757443,2.4134,3266.8,3266.2,3.06164]
[1722270757709,0.61703464,3267.2,3266.8,3.06107]
[1722270757984,0.92555196,3267.4,3265.9,0.61468009]
[1722270757985,0.07652372,3267.4,3266.9,3.06097]
[1722270758192,0.07651106,3267.7,3266.9,3.06098]
[1722270758416,0.07651106,3267.7,3266.2,0.3048]
[1722270758544,0.07651106,3267.7,3266.3,3.06149]
[1722270758745,0.1413,3266.2,3265.9,3.67661009]
[1722270759000,0.1413,3266.2,3265.9,2.42278937]
[1722270759294,0.1413,3266.2,3265.3,3.06245]
[1722270759498,0.0765545,3266.1,3265.1,3.0626]
[1722270759679,0.0765545,3266.1,3265.3,3.06243]
[1722270759848,3.06201,3265.9,3264.9,3.36768]
[1722270760045,0.1413,3266.2,3264.9,0.3048]
[1722270760346,0.07655331,3266.1,3265.8,3.06202]
[1722270760688,0.1413,3266.2,3265.9,3.06192]
[1722270760918,0.92555196,3267.3,3266.0,3.367992]
[1722270761109,0.61717334,3268.6,3266.5,3.06137]
[1722270761411,0.61717334,3268.1,3266.4,3.06138]
[1722270761584,0.61717334,3268.1,3265.3,2.2605]
[1722270761585,2.4189,3266.4,3264.7,3.06298]
[1722270761795,2.4189,3266.4,3263.3,1.5]
[1722270761796,3.06194,3265.9,3264.3,0.3048]
[1722270761956,0.07656834,3265.8,3264.8,3.06296]
[1722270762155,0.07657357,3265.7,3264.4,0.39923661]
[1722270762474,0.61717334,3265.9,3264.7,3.06298]
[1722270762812,3.06233,3265.5,3264.4,0.39923661]
[1722270762950,0.07658147,3265.4,3264.6,3.06316]
[1722270763326,0.07658147,3265.4,3264.6,0.31575966]
[1722270763604,0.07658147,3265.4,3264.4,0.09443661]
[1722270764189,3.78684882,3266.3,3264.4,0.09443661]
[1722270764190,3.06272,3265.1,3264.4,0.09443661]
[1722270764402,0.0765886,3265.0,3264.4,0.09443661]
[1722270764778,2.4048,3265.3,3264.9,3.0628]
[1722270764944,2.4048,3265.3,3264.7,3.06305]
[1722270764945,2.4048,3265.3,3264.8,3.06296]
[1722270765316,0.61717334,3266.2,3264.6,0.06125836]
[1722270765317,2.4048,3266.2,3264.6,0.06125836]
[1722270765443,2.4048,3266.2,3265.2,3.06252]
[1722270765645,2.4048,3266.2,3265.4,3.06239]
[1722270765888,3.06248,3265.4,3264.4,0.79637338]
[1722270766092,0.07657801,3265.5,3264.4,0.79637338]
[1722270766334,0.07657801,3265.5,3264.5,3.06319]
[1722270766633,0.07657801,3265.5,3264.4,0.79637338]
[1722270766839,0.07657896,3266.0,3264.4,0.79637338]
[1722270767002,3.06222,3265.6,3264.6,3.06309]
[1722270767218,0.07657197,3265.5,3264.6,3.06315]
[1722270767513,0.07657197,3265.5,3264.4,0.09443661]
[1722270767729,3.06296,3264.9,3264.4,0.09443661]
[1722270767938,0.07657197,3265.5,3264.4,0.09443661]
[1722270767939,3.06325,3264.5,3264.4,0.09443661]
[1722270768454,6.12688,3264.3,3264.2,5.31353373]
[1722270768661,0.25306948,3264.6,3264.2,2.47002682]
[1722270768875,3.06344,3264.3,3264.2,2.47002682]
[1722270769153,4.09326347,3265.1,3264.2,2.47002682]
[1722270769154,3.01666716,3265.6,3264.6,3.06314]
[1722270769352,2.4003,3265.6,3265.3,3.06244]
[1722270769576,0.07655785,3265.5,3264.9,3.06284]
[1722270769699,0.07655785,3265.5,3264.2,2.47002682]
[1722270769909,0.07655785,3265.5,3264.7,3.063]
[1722270770102,0.07655785,3265.5,3264.3,3.62552103]
[1722270770403,2.4003,3265.6,3265.0,3.06275]
[1722270770604,0.07656325,3265.5,3264.3,3.32078103]
[1722270770838,0.07656325,3265.5,3264.4,3.64239079]
[1722270771035,0.07656325,3265.5,3264.4,0.57908079]
[1722270771223,2.4003,3265.6,3264.8,3.06295]
[1722270771439,0.07656182,3265.5,3264.5,0.3048]
[1722270771747,0.07656182,3265.5,3264.7,3.06306]
[1722270771964,0.07656182,3265.5,3264.5,0.3048]
[1722270771965,2.47686867,3265.6,3264.8,3.43052094]
[1722270772187,0.07656173,3266.1,3265.2,3.06259]
[1722270772454,0.07656173,3266.1,3265.4,3.06234]
[1722270772759,0.07656173,3266.1,3265.4,3.06238]
[1722270772922,0.07656173,3266.1,3265.2,0.06124416]
[1722270773124,0.07656173,3266.1,3264.9,0.3048]
[1722270773125,1.829,3266.6,3264.1,0.1034835]
[1722270773322,2.2571,3266.7,3264.1,0.1034835]
[1722270773323,2.2571,3264.8,3264.1,0.1034835]
[1722270774355,2.2571,3264.8,3264.2,2.5311759]
[1722270774563,2.2571,3264.8,3264.3,0.06126405]
[1722270774721,0.07658006,3265.2,3264.3,0.06126405]
[1722270774927,2.8587069,3265.3,3264.4,3.62282209]
[1722270775261,2.8587069,3265.3,3264.5,0.06125505]
[1722270775472,0.07656881,3265.2,3264.4,0.55948209]
[1722270775626,0.07656881,3265.2,3264.2,2.47002682]
[1722270775810,0.07656881,3265.2,3264.3,0.06126165]
[1722270776052,2.8587069,3265.3,3264.3,0.36606165]
[1722270776239,2.8587069,3265.3,3264.3,3.36606165]
[1722270776440,2.8587069,3265.3,3265.2,6.12518]
[1722270776792,2.8587069,3265.3,3265.2,9.800288]
[1722270777104,2.8587069,3265.3,3265.2,10.350288]
[1722270777105,6.9e-06,3265.3,3265.2,10.350288]
[1722270777378,6.9e-06,3265.3,3265.2,9.737698]
[1722270777836,6.9e-06,3265.3,3265.2,12.800288]
[1722270778040,0.07654447,3267.2,3265.3,0.3048]
[1722270778364,2.4539,3267.3,3266.6,3.06123]
[1722270778566,2.4539,3267.3,3266.7,3.12239586]
[1722270778740,2.4539,3268.2,3266.8,0.06121582]
[1722270778942,2.4539,3268.2,3266.7,3.06117]
[1722270779137,2.4539,3268.2,3266.9,3.06099]
[1722270779372,0.6165456,3268.8,3267.7,3.06024]
[1722270779373,0.07650346,3268.7,3267.7,3.06024]
[1722270779575,0.07650346,3268.7,3267.4,3.06048]
[1722270779788,0.07650346,3268.7,3267.1,3.06081]
[1722270780093,0.07650346,3268.7,3267.2,3.366791]
[1722270780389,0.07650346,3268.7,3267.4,3.06044]
[1722270780600,0.07650346,3268.7,3267.2,3.366781]
[1722270780805,3.0593,3268.8,3267.2,0.306081]
[1722270781092,0.07649576,3268.7,3267.3,0.06119661]
[1722270781395,3.0492456,3269.1,3267.9,3.06002]
[1722270781396,0.07649378,3268.9,3267.9,3.06002]
[1722270781566,2.4327,3269.1,3268.2,3.0597]
[1722270781773,2.4327,3269.1,3268.9,3.05905]
[1722270782084,2.3143,3269.9,3268.3,0.06118752]
[1722270782302,2.3143,3269.9,3268.1,3.05987]
[1722270782303,2.9308456,3271.0,3269.7,3.05831]
[1722270782596,2.9308456,3271.0,3268.2,6.05972]
[1722270782597,3.05801,3270.1,3268.2,6.05972]
[1722270782914,0.07646095,3270.0,3268.7,3.05931]
[1722270783195,0.44740275,3270.9,3268.8,0.06117066]
[1722270783420,0.44740275,3270.9,3268.8,3.12039066]
[1722270783421,0.07645374,3270.8,3268.8,3.12039066]
[1722270783695,3.05827,3269.9,3268.8,0.34251907]
[1722270783853,3.56412042,3270.8,3269.3,3.05875]
[1722270784180,2.63516338,3270.7,3268.8,0.40368688]
[1722270784349,3.05794,3270.2,3268.7,3.05931]
[1722270784554,3.05827,3269.9,3268.1,3.05981]
[1722270784749,0.07646542,3269.8,3268.7,3.05927]
[1722270784998,0.07646142,3270.2,3268.9,3.05913]
[1722270785204,0.07646142,3270.2,3268.8,0.305927]
[1722270785205,3.05745,3270.7,3269.3,3.05872]
[1722270785492,0.43030668,3270.8,3268.8,0.305927]
[1722270785690,3.05783,3270.3,3269.1,3.05893]
[1722270785910,0.07645408,3270.7,3269.2,0.03471081]
[1722270786052,0.07645408,3270.7,3269.8,3.05821]
[1722270786252,5.42683,3272.0,3270.1,3.05794]
[1722270786468,5.42683,3272.0,3270.6,3.05745]
[1722270786469,5.42684,3272.0,3270.6,3.05745]
[1722270786685,0.07642071,3271.9,3270.7,0.06113657]
[1722270786876,0.07642071,3271.9,3269.9,3.0]
[1722270787092,0.07642071,3271.9,3270.2,3.05789]
[1722270787296,0.07642071,3271.9,3270.0,0.55]
[1722270787297,0.07642071,3271.9,3270.6,3.05752]
[1722270787454,3.13279071,3271.9,3270.8,3.05734]
[1722270787652,2.3706,3272.0,3271.4,3.05671]
[1722270787854,2.3706,3272.0,3271.5,0.06112772]
[1722270788090,3.05558,3272.7,3271.5,0.06112772]
[1722270788355,0.62871373,3272.7,3271.4,3.05677]
[1722270788556,2.4675,3272.8,3271.9,3.05631]
[1722270788796,2.4675,3272.8,3270.8,3.05733]
[1722270788797,2.4675,3272.8,3272.0,3.05621]
[1722270789103,3.05464,3273.7,3271.3,3.05679]
[1722270789104,5.52217,3273.7,3272.6,3.05563]
[1722270789394,2.54387876,3273.7,3272.6,3.05563]
[1722270789614,5.59853876,3273.7,3272.7,0.06110301]
[1722270789762,2.54387876,3273.7,3272.7,0.06110301]
[1722270789957,2.4675,3273.7,3273.0,3.05522]
[1722270790183,2.4675,3273.7,3271.7,0.06110301]
[1722270790184,0.07637876,3273.7,3272.0,3.0]
[1722270790512,0.07637876,3273.7,3272.8,3.05542]
[1722270790719,5.403181,3274.4,3272.9,3.11645553]
[1722270790860,3.05457,3273.8,3273.0,0.06109572]
[1722270791207,3.05457,3273.8,3271.7,0.3]
[1722270791208,3.05456,3273.8,3272.2,3.05604]
[1722270791507,3.05458,3273.8,3272.7,3.05556]
[1722270791716,3.05454,3273.9,3272.6,3.05565]
[1722270791872,0.07637078,3273.8,3272.9,3.05538]
[1722270792070,5.403221,3274.4,3273.1,3.0552]
[1722270792281,3.05446,3273.9,3272.8,3.05546]
[1722270792496,3.05446,3273.9,3272.6,3.05559]
[1722270792705,3.13093565,3273.8,3272.3,3.0]
[1722270792878,3.1304661,3274.3,3272.0,6.05622]
[1722270793223,0.724191,3274.4,3273.1,3.05518]
[1722270793435,0.724191,3274.4,3272.1,0.55]
[1722270793436,0.07636774,3274.2,3273.2,3.05509]
[1722270793565,0.07636774,3274.2,3273.3,0.3585095]
[1722270793765,3.05465,3273.7,3272.8,3.0]
[1722270794000,0.07637514,3274.2,3272.7,3.0]
[1722270794176,3.13059514,3274.2,3272.9,3.05539]
[1722270794382,3.05428,3274.1,3272.8,3.35546]
[1722270794566,3.13073953,3274.0,3272.5,3.0]
[1722270794787,3.13073953,3274.0,3271.6,5.49662]
[1722270794788,0.07636953,3274.0,3272.0,3.05621]
[1722270794989,0.724191,3274.4,3272.1,3.855621]
[1722270795227,0.0898965,3276.3,3272.6,2.2661]
[1722270795435,3.05288,3275.6,3273.6,3.05465]
[1722270795632,3.05314,3275.4,3274.2,3.05416]
[1722270795931,3.05289,3275.6,3274.4,3.05394]
[1722270795932,0.07634152,3275.3,3274.4,3.05394]
[1722270796089,0.07634152,3275.3,3273.7,3.0]
[1722270796090,3.05334,3275.1,3273.9,3.05444]
[1722270796428,0.0763388,3275.0,3273.9,0.605444]
[1722270796600,3.05354,3274.9,3273.7,3.05463]
[1722270796800,3.05354,3274.9,3272.7,1.5]
[1722270796801,0.07635198,3274.8,3273.3,3.0]
[1722270797143,3.12998198,3274.8,3273.7,3.05458]
[1722270797286,0.07634853,3274.7,3273.9,3.05439]
[1722270797493,0.07634853,3274.7,3273.7,0.61093]
[1722270797695,0.07635782,3275.7,3271.7,0.3]
[1722270797891,2.2513,3273.2,3270.9,4.4725]
[1722270798192,2.2513,3273.2,3272.0,3.05615]
[1722270798423,3.0553,3273.0,3270.9,4.4725]
[1722270798602,3.05595,3272.3,3271.0,0.44725]
[1722270798787,0.07639504,3272.9,3271.1,0.03327364]
[1722270799013,2.2513,3273.2,3272.2,3.05603]
[1722270799219,3.05438,3274.0,3272.3,0.05034741]
[1722270799538,2.53248087,3273.9,3272.2,3.05604]
[1722270799756,3.13092556,3273.8,3272.3,0.305604]
[1722270799889,3.05475,3273.6,3272.2,3.056]
[1722270800234,3.05509,3273.3,3272.0,3.05621]
[1722270800405,2.4561,3273.9,3272.1,3.32322549]
[1722270800612,2.4561,3273.9,3272.1,0.305621]
[1722270800613,2.53247573,3273.9,3272.1,0.305621]
[1722270800840,0.07637578,3273.8,3272.7,3.05556]
[1722270800994,3.05465,3273.7,3272.8,0.06110063]
[1722270801194,0.07637578,3273.8,3272.9,3.05534]
[1722270801522,0.07637578,3273.8,3273.0,0.0610965]
[1722270801732,3.05492,3273.5,3271.8,3.0]
[1722270801910,3.05558,3272.7,3271.4,3.05678]
[1722270802094,3.05558,3272.7,3271.2,3.05697]
[1722270802095,0.07639752,3272.6,3271.6,0.06111802]
[1722270802303,3.0556,3272.7,3271.6,0.06111802]
[1722270802526,3.05606,3272.2,3271.5,0.3048]
[1722270802745,3.05606,3272.2,3270.0,2.2643]
[1722270802746,0.07641254,3272.1,3270.5,3.05762]
[1722270803049,0.07641254,3272.1,3270.0,5.32233]
[1722270803050,3.0567,3271.5,3270.2,3.05782]
[1722270803254,5.41677,3272.6,3269.2,0.3048]
[1722270803255,3.05701,3271.2,3269.2,0.3048]
[1722270803412,3.05701,3271.2,3269.1,3.05887]
[1722270803413,0.07643332,3271.1,3269.4,0.3048]
[1722270803591,3.05623,3272.0,3270.8,3.05733]
[1722270803795,2.3611,3272.6,3270.8,3.05733]
[1722270803796,5.41684,3272.6,3271.2,3.05698]
[1722270804112,2.4509,3274.6,3271.3,0.05433237]
[1722270804360,2.4509,3274.6,3272.3,3.05587]
[1722270804361,3.05433,3274.1,3272.3,3.05587]
[1722270804504,2.4509,3273.3,3271.8,3.0]
[1722270804822,0.07639478,3273.2,3270.8,0.305733]
[1722270805025,0.07639478,3273.2,3270.9,0.06111876]
[1722270805340,0.07639478,3273.2,3270.9,0.55]
[1722270805495,0.07639478,3273.2,3270.7,0.55]
[1722270805696,5.50601,3273.3,3272.0,3.05623]
[1722270806010,3.05521,3273.1,3272.1,0.06111385]
[1722270806224,3.001501,3273.3,3271.6,3.05651]
[1722270806225,0.07639494,3273.0,3271.6,3.05651]
[1722270806525,2.4509,3273.3,3272.6,3.0556]
[1722270806737,2.4509,3273.3,3272.7,3.11667268]
[1722270807044,2.3429,3274.0,3272.8,0.06109953]
[1722270807635,2.3429,3274.0,3273.2,3.35983]
[1722270807836,3.05343,3275.0,3273.3,0.06108654]
[1722270808036,3.05334,3275.1,3273.7,3.05459]
[1722270808268,0.07634869,3275.0,3273.2,0.3048]
[1722270808569,3.05369,3274.8,3273.3,0.05090255]
[1722270808808,3.05327,3275.2,3274.1,3.05418]
[1722270808918,0.31063689,3275.4,3273.8,0.3048]
[1722270809277,3.28738,3275.4,3273.8,0.3048]
[1722270809439,3.12949215,3275.3,3273.9,3.35916]
[1722270809799,3.05389,3274.6,3273.2,0.3048]
[1722270809997,2.3426,3274.4,3273.2,0.3048]
[1722270810146,2.3426,3274.4,3270.7,7.34]
[1722270810147,0.07636951,3274.3,3272.3,3.05593]
[1722270810338,2.3426,3274.4,3272.6,3.05567]
[1722270810339,3.05445,3274.0,3272.6,3.05567]
[1722270810570,0.07637254,3273.9,3272.0,3.05623]
[1722270810804,3.05486,3273.5,3272.1,0.305623]
[1722270810982,0.07637946,3273.4,3272.0,3.361]
[1722270811142,2.3426,3274.4,3272.4,3.05584]
[1722270811143,3.13073446,3274.1,3272.4,3.05584]
[1722270811340,3.0544,3274.0,3272.9,3.05533]
[1722270811541,3.05428,3274.1,3273.0,0.36661976]
[1722270811785,3.05419,3274.2,3273.1,3.05514]
[1722270812800,2.335,3275.2,3273.7,0.3048]
[1722270812948,2.335,3275.2,3274.1,3.05426]
[1722270813150,2.335,3275.2,3274.2,0.06106254]
[1722270813444,2.335,3275.2,3274.3,0.06106908]
[1722270814283,0.0763363,3275.1,3273.3,0.3048]
[1722270814485,0.0763363,3275.1,3273.5,0.3048]
[1722270814791,9.199,3278.1,3273.9,1.8048]
[1722270814792,2.4082,3277.0,3273.9,1.8048]
[1722270814991,2.48451425,3277.0,3274.0,0.71226]
[1722270815283,2.4082,3277.0,3274.2,0.3048]
[1722270815459,3.206,3276.9,3274.2,0.3048]
[1722270815644,3.48375026,3276.2,3274.2,0.3048]
[1722270815849,1.05741715,3276.1,3274.2,0.3048]
[1722270816092,1.05741715,3276.1,3273.2,3.0]
[1722270816093,0.07633385,3276.0,3273.2,0.3048]
[1722270816274,0.07633385,3276.0,3273.3,0.81346]
[1722270816275,1.05756009,3275.9,3273.3,0.81346]
[1722270816475,0.31896724,3276.0,3273.3,0.81346]
[1722270816476,0.24263339,3276.0,3273.3,0.81346]
[1722270816884,0.24263339,3276.0,3273.4,0.06106297]
[1722270817086,0.24263339,3276.0,3273.6,0.3048]
[1722270817392,0.07632033,3275.9,3273.8,0.3048]
[1722270817591,2.35,3276.2,3273.7,0.55]
[1722270817592,0.07631288,3276.1,3274.0,0.3048]
[1722270817791,0.24263129,3276.0,3274.2,0.3048]
[1722270818001,2.35,3276.2,3273.7,1.5]
[1722270818002,2.35,3276.2,3274.4,0.3048]
[1722270818298,2.35,3276.2,3274.5,0.06105138]
[1722270818600,0.07631423,3276.1,3274.6,0.3048]
[1722270818896,0.07631537,3276.1,3274.6,0.3048]
[1722270819189,0.32793656,3276.1,3274.6,0.3048]
[1722270819553,0.32793656,3276.1,3274.2,0.3048]
[1722270820308,0.07633995,3276.0,3274.2,0.3048]
[1722270820617,0.07633995,3276.0,3273.4,0.3048]
[1722270820917,1.0575565,3275.9,3273.3,0.26346]
[1722270821150,3.45762119,3276.1,3273.3,0.26346]
[1722270821151,2.4666,3275.7,3273.3,0.26346]
[1722270821399,1.13390627,3275.6,3272.8,6.216]
[1722270821564,0.07634977,3275.6,3272.8,6.216]
[1722270821907,0.07634977,3275.6,3272.8,6.5208]
[1722270822211,4.51792404,3275.5,3272.9,0.65208]
[1722270822417,3.206,3275.1,3271.5,2.4521]
[1722270822570,3.206,3274.9,3271.5,2.4521]
[1722270822771,1.13400383,3274.8,3271.7,0.3048]
[1722270822979,1.13400383,3274.7,3271.7,0.3048]
[1722270823179,3.41062906,3274.6,3271.7,0.3048]
[1722270823403,1.61447244,3274.5,3271.7,0.3048]
[1722270823604,1.05762906,3274.4,3271.7,0.3048]
[1722270823827,2.353,3274.2,3271.7,0.3048]
[1722270824105,1.13401366,3274.1,3271.4,0.3048]
[1722270824323,1.13401366,3274.1,3271.6,0.3048]
[1722270824324,6.16506448,3274.0,3271.6,0.3048]
[1722270824461,1.13402676,3273.9,3271.6,0.3048]
[1722270824667,0.0763977,3273.9,3271.6,0.3048]
[1722270824866,2.4201,3273.7,3271.6,0.3048]
[1722270825067,1.48256847,3273.6,3271.6,0.3048]
[1722270825303,1.48256847,3273.6,3270.8,2.4882]
[1722270825304,0.3478428,3273.6,3271.7,0.02266957]
[1722270825473,0.07639725,3273.5,3271.8,0.3048]
[1722270825679,0.07639725,3273.5,3272.0,0.3048]
[1722270826664,0.07639725,3273.5,3270.8,2.4882]
[1722270826665,2.6140789,3273.4,3271.0,0.3048]
[1722270826869,0.3478428,3273.6,3271.0,0.5841]
[1722270826870,2.95952388,3273.3,3271.0,0.5841]
[1722270827112,2.69047714,3273.2,3271.0,0.3048]
[1722270827416,1.55572738,3273.1,3271.0,0.3048]
[1722270827613,1.55572738,3273.1,3271.1,0.3048]
[1722270827614,2.3473,3272.9,3271.1,0.3048]
[1722270827771,4.92772482,3272.8,3271.1,0.3048]
[1722270828107,4.92772482,3272.8,3269.4,2.4886]
[1722270828108,0.61416879,3272.4,3269.4,2.4886]
[1722270828310,5.6619,3272.2,3269.4,0.3048]
[1722270828622,1.55572738,3272.1,3269.5,0.02197906]
[1722270828844,1.55572738,3272.1,3269.8,0.3048]
[1722270829110,2.4559,3272.2,3270.0,0.3048]
[1722270829270,2.4559,3272.2,3270.2,0.3048]
[1722270829470,2.3911,3272.9,3270.3,0.05857622]
[1722270829778,1.55577813,3272.8,3270.3,0.05857622]
[1722270829980,1.55577813,3272.8,3270.7,0.3048]
[1722270830184,2.3911,3272.9,3271.1,0.3048]
[1722270830383,0.61416879,3274.0,3271.0,1.5]
[1722270830384,2.4489,3274.0,3271.3,0.3048]
[1722270830612,1.55542274,3273.9,3271.5,0.3048]
[1722270830768,1.55542274,3273.9,3271.2,8.6687]
[1722270830769,1.55542274,3273.9,3271.8,0.3048]
[1722270830972,2.4489,3274.0,3272.0,0.3048]
[1722270831186,0.92125319,3274.9,3272.2,0.3048]
[1722270831187,1.55505765,3273.9,3272.2,0.3048]
[1722270831403,2.4489,3274.8,3272.4,0.3048]
[1722270831404,1.55505765,3273.8,3272.4,0.3048]
[1722270831613,2.4489,3274.8,3272.6,0.3048]
[1722270831914,2.4489,3274.8,3271.9,0.18048]
[1722270831915,4.57228199,3274.7,3272.8,0.3048]
[1722270832137,4.57228199,3274.7,3271.9,0.18048]
[1722270832138,3.8875097,3274.6,3273.0,0.3048]
[1722270832276,3.8875097,3274.6,3273.2,0.3048]
[1722270832479,1.55500388,3274.5,3273.4,0.3048]
[1722270832694,0.07635729,3274.4,3273.5,0.06107654]
[1722270832891,0.66427166,3274.6,3273.5,0.06107654]
[1722270832892,1.55500388,3274.3,3273.5,0.06107654]
[1722270833092,1.55500388,3274.2,3273.5,0.06107654]
[1722270833295,1.55500388,3274.1,3273.5,0.06107654]
[1722270833548,1.63136327,3274.0,3273.4,0.3048]
[1722270833740,1.55500388,3273.9,3273.4,0.3048]
[1722270833893,0.07635774,3274.7,3271.9,4.88648]
[1722270833894,1.55500388,3273.8,3273.0,0.3048]
[1722270834246,1.63133656,3273.7,3273.0,0.3048]
[1722270834525,0.07637139,3274.4,3273.0,0.3048]
[1722270834750,3.88782547,3274.3,3273.0,0.3048]
[1722270835021,0.61940528,3274.5,3273.0,0.3048]
[1722270835022,1.63150176,3274.2,3273.0,0.3048]
[1722270835222,1.55513037,3274.1,3273.0,0.3048]
[1722270835377,1.55513037,3274.1,3271.6,0.06109711]
[1722270835378,1.55513037,3274.1,3273.1,0.3048]
[1722270835578,0.30683053,3274.7,3273.1,0.3048]
[1722270835814,0.30683053,3274.7,3272.3,1.5]
[1722270835815,1.83041657,3274.6,3273.3,0.3048]
[1722270836123,0.07635029,3274.7,3273.4,0.36588023]
[1722270836585,1.55477719,3274.6,3272.8,0.3048]
[1722270836783,0.07636282,3274.5,3272.8,0.3048]
[1722270837012,1.55477719,3274.4,3272.9,0.3048]
[1722270837324,0.23948032,3274.3,3272.9,0.3048]
[1722270837520,0.07636283,3274.2,3272.9,0.3048]
[1722270838021,0.07636286,3274.7,3272.0,0.3048]
[1722270838324,1.5549684,3274.6,3272.2,0.3048]
[1722270838518,0.07636289,3274.5,3272.4,0.3048]
[1722270838742,1.71810153,3274.4,3272.4,0.3048]
[1722270838926,0.07636291,3274.3,3272.6,0.3048]
[1722270839790,0.07636294,3274.7,3272.4,0.3048]
[1722270839998,0.07636294,3274.7,3272.3,0.55]
[1722270839999,1.80743332,3274.6,3272.6,0.3048]
[1722270840203,0.07635916,3274.5,3272.8,0.3048]
[1722270840406,0.61972709,3274.9,3273.0,0.3048]
[1722270840626,1.63113852,3274.8,3273.0,0.3048]
[1722270840831,0.07635829,3274.7,3273.0,0.3048]
[1722270840997,0.07635768,3274.8,3273.0,0.3048]
[1722270841203,0.61972709,3274.9,3273.2,0.3048]
[1722270841706,0.61972709,3274.9,3273.4,0.3048]
[1722270841902,0.61972709,3274.9,3273.4,1.8048]
[1722270842102,0.61972709,3274.9,3273.6,0.3048]
[1722270842303,0.61972709,3274.9,3273.8,0.3048]
[1722270842826,0.78229187,3274.9,3273.3,0.69028]
[1722270843030,0.61972709,3274.9,3273.3,0.69028]
[1722270843515,0.69607144,3274.9,3273.3,0.69028]
[1722270843707,0.69607144,3274.9,3273.1,0.3048]
[1722270843904,0.69607144,3274.9,3272.4,0.3048]
[1722270844102,1.55489296,3274.8,3272.4,0.3048]
[1722270844330,0.07636353,3274.7,3272.4,0.3048]
[1722270844931,3.96319592,3274.6,3271.6,0.3048]
[1722270845135,3.96319592,3274.6,3271.5,2.4227]
[1722270845136,2.0354276,3274.5,3271.8,1.8048]
[1722270845308,3.206,3274.3,3271.8,0.3048]
[1722270845507,1.6316274,3274.2,3271.8,0.3048]
[1722270845830,1.6316274,3274.2,3270.7,1.5]
[1722270845831,3.206,3273.9,3270.7,2.4227]
[1722270846016,1.55524492,3274.1,3270.9,0.30584964]
[1722270846017,3.206,3273.5,3270.9,0.30584964]
[1722270846215,3.206,3273.3,3270.9,0.30584964]
[1722270846424,0.0764061,3273.2,3270.9,0.30584964]
[1722270847151,3.2824061,3273.2,3270.9,0.30584964]
[1722270847456,3.2824061,3273.2,3269.1,0.63579635]
[1722270847457,3.206,3272.9,3269.5,3.9633]
[1722270847606,1.6322059,3272.8,3269.5,3.9633]
[1722270847807,3.206,3272.9,3269.6,6.216]
[1722270847808,0.07641455,3272.7,3269.6,6.216]
[1722270848030,0.07641455,3272.7,3269.7,0.3048]
[1722270848244,0.32824146,3272.7,3270.1,1.8048]
[1722270848465,5.78474061,3273.1,3270.2,0.06112037]
[1722270848790,5.78474061,3273.1,3270.1,1.8048]
[1722270848791,0.07640139,3273.0,3270.4,0.3048]
[1722270849057,2.57874061,3273.1,3270.6,0.3048]
[1722270849260,2.57874061,3273.1,3270.8,0.3048]
[1722270849261,0.2655142,3272.9,3270.8,0.3048]
[1722270849423,0.2655142,3272.9,3270.1,1.5]
[1722270849424,0.2655142,3272.9,3271.0,0.3048]
[1722270849607,0.2655142,3272.9,3270.9,0.06112289]
[1722270849608,0.2655142,3272.9,3271.2,0.3048]
[1722270849945,0.2655142,3272.9,3271.3,0.36591734]
[1722270850150,0.07639299,3273.7,3271.4,0.55]
[1722270850323,2.343,3273.8,3271.5,0.06110871]
[1722270850749,0.07637841,3274.3,3271.7,0.3048]
[1722270850952,0.07637095,3274.2,3271.9,0.3048]
[1722270851136,3.206,3274.0,3271.5,3.3048]
[1722270851350,1.55524008,3274.1,3271.5,0.3048]
[1722270851351,4.8377672,3273.9,3271.5,0.3048]
[1722270851553,4.8377672,3273.9,3269.7,0.95322987]
[1722270851554,5.73311534,3273.8,3270.3,1.5]
[1722270851725,0.07638196,3273.7,3271.0,0.06110557]
[1722270852265,2.82877672,3273.8,3271.0,0.06110557]
[1722270852266,2.82877672,3273.8,3271.4,0.3048]
[1722270852563,2.82877672,3273.8,3271.6,0.3048]
[1722270852564,2.345,3273.8,3271.6,0.3048]
[1722270852760,0.2343,3274.4,3271.5,0.06109623]
[1722270852761,0.07636774,3273.7,3271.8,0.3048]
[1722270853062,0.07637295,3274.3,3271.9,0.8548]
[1722270853268,2.4979,3274.6,3271.9,0.3048]
[1722270853269,0.07637502,3274.2,3271.9,0.3048]
[1722270853563,1.55524498,3274.1,3271.9,0.3048]
[1722270853779,0.07638274,3274.0,3271.0,3.0]
[1722270854061,0.07638274,3274.0,3270.9,3.9126]
[1722270854062,3.206,3273.8,3270.9,2.4126]
[1722270854268,3.47584242,3273.7,3271.1,0.03045157]
[1722270854421,0.07639094,3273.7,3271.1,0.03045157]
[1722270854826,0.07639094,3273.7,3271.1,0.3048]
[1722270855475,0.07638485,3273.6,3271.3,0.3048]
[1722270855625,2.4815,3273.9,3271.6,1.5]
[1722270855827,0.07637718,3273.8,3272.9,3.05531]
[1722270856073,2.4815,3273.9,3272.4,0.06110177]
[1722270856293,2.4546,3274.6,3273.4,3.05483]